bitfinex/quotes_BTCUSD_20260110
["timestamp","ask_amount","ask_price","bid_price","bid_amount"]
[1768063864447,0.04789665,90685.0,90674.0,0.01102851]
[1768063864651,0.04789665,90685.0,90672.0,0.01102876]
[1768063866873,0.04789665,90685.0,90671.0,0.01102888]
[1768063867644,0.05892383,90685.0,90670.0,0.011029]
[1768063867780,0.05892383,90685.0,90671.0,0.01102888]
[1768063868195,0.05892383,90685.0,90670.0,0.011029]
[1768063868675,0.0110273,90684.0,90669.0,0.01102912]
[1768063869802,0.05892383,90685.0,90671.0,0.01102888]
[1768063870007,0.0110273,90684.0,90669.0,0.01102912]
[1768063871388,0.04789665,90685.0,90671.0,0.01102888]
[1768063872692,0.05892383,90685.0,90671.0,0.01102888]
[1768063872902,0.0110273,90684.0,90670.0,0.011029]
[1768063873247,0.05892383,90685.0,90671.0,0.01102888]
[1768063873647,0.05892383,90685.0,90670.0,0.011029]
[1768063873947,0.05892383,90685.0,90671.0,0.01102888]
[1768063874167,0.05875701,90685.0,90671.0,0.01102888]
[1768063875986,0.04772983,90685.0,90672.0,0.01102876]
[1768063876544,0.04772983,90685.0,90673.0,0.01102864]
[1768063877063,0.04772983,90685.0,90672.0,0.01102876]
[1768063877264,0.05875701,90685.0,90670.0,0.011029]
[1768063877647,0.05875701,90685.0,90671.0,0.01102888]
[1768063879246,0.05875701,90685.0,90670.0,0.011029]
[1768063880657,0.0110273,90684.0,90670.0,0.30329546]
[1768063881524,0.0110273,90684.0,90670.0,0.011029]
[1768063882055,0.05875701,90685.0,90670.0,0.011029]
[1768063882771,0.04772983,90685.0,90671.0,0.01102888]
[1768063884358,0.05875701,90685.0,90671.0,0.01102888]
[1768063884573,0.04772983,90685.0,90672.0,0.01102876]
[1768063885157,0.04772983,90685.0,90673.0,0.01102864]
[1768063885364,0.04772983,90685.0,90674.0,0.01102851]
[1768063885569,0.04772983,90685.0,90674.0,0.0109836]
[1768063885769,0.04772983,90685.0,90675.0,0.01102839]
[1768063885968,0.04772983,90685.0,90674.0,0.0109836]
[1768063886173,0.04772983,90685.0,90673.0,0.01102864]
[1768063886537,0.04772983,90685.0,90674.0,0.01102851]
[1768063886739,0.04772983,90685.0,90673.0,0.01102864]
[1768063889323,0.04772983,90685.0,90674.0,0.01102851]
[1768063890055,0.04772983,90685.0,90675.0,0.01102839]
[1768063890393,0.03310043,90684.0,90675.0,0.01102839]
[1768063890797,0.03310043,90684.0,90674.0,0.01102851]
[1768063891057,0.000152,90690.0,90676.0,0.01102827]
[1768063891264,0.000152,90690.0,90677.0,0.01102815]
[1768063891415,0.0330989,90687.0,90676.0,0.01102827]
[1768063892032,0.01117857,90690.0,90676.0,0.01102827]
[1768063892233,0.01102669,90689.0,90675.0,0.03310839]
[1768063892440,0.0330989,90689.0,90675.0,0.02208]
[1768063893394,0.0330989,90689.0,90676.0,0.01102827]
[1768063894652,0.0330989,90689.0,90675.0,0.02208]
[1768063894858,0.04412559,90689.0,90675.0,0.02208]
[1768063895058,0.0330989,90689.0,90676.0,0.01102827]
[1768063895260,0.01117857,90690.0,90676.0,0.01102827]
[1768063895467,0.0330989,90689.0,90676.0,0.01102827]
[1768063898817,0.0330989,90689.0,90677.0,0.01102815]
[1768063899018,0.0330989,90689.0,90676.0,0.01102827]
[1768063901784,0.0330989,90689.0,90675.0,0.03310839]
[1768063902599,0.04412559,90689.0,90675.0,0.02208]
[1768063902885,0.04412559,90689.0,90675.0,0.03310839]
[1768063903031,0.05871652,90690.0,90676.0,0.01102827]
[1768063903232,0.0330989,90688.0,90676.0,0.01102827]
[1768063906251,0.0330989,90688.0,90677.0,0.01102815]
[1768063906391,0.000152,90690.0,90684.0,0.0110273]
[1768063906701,0.000152,90690.0,90685.0,0.01102718]
[1768063906891,0.000152,90690.0,90684.0,0.0110273]
[1768063907325,0.000152,90690.0,90682.0,0.01102754]
[1768063907686,0.000152,90690.0,90681.0,0.01102766]
[1768063909028,0.000152,90690.0,90682.0,0.01102754]
[1768063909441,0.000152,90690.0,90680.0,0.01102779]
[1768063909642,0.000152,90690.0,90679.0,0.01102791]
[1768063910311,0.000152,90690.0,90680.0,0.01102779]
[1768063910539,0.000152,90690.0,90679.0,0.01102791]
[1768063911265,0.000152,90690.0,90680.0,0.01102779]
[1768063912910,0.000152,90690.0,90679.0,0.01102791]
[1768063913311,0.000152,90690.0,90680.0,0.01102779]
[1768063913540,0.000152,90690.0,90679.0,0.01102791]
[1768063915250,0.000152,90690.0,90680.0,0.01102779]
[1768063915794,0.000152,90690.0,90681.0,0.01102766]
[1768063919133,0.000152,90690.0,90682.0,0.01102754]
[1768063919345,0.000152,90690.0,90681.0,0.01102766]
[1768063921919,0.000152,90690.0,90680.0,0.01102779]
[1768063922587,0.000152,90690.0,90677.0,0.01102815]
[1768063922790,0.000152,90690.0,90678.0,0.01102803]
[1768063923469,0.000152,90690.0,90679.0,0.0108743]
[1768063924104,0.000152,90690.0,90678.0,0.01102803]
[1768063924644,0.000152,90690.0,90678.0,0.01087443]
[1768063926961,0.000152,90690.0,90677.0,0.01102815]
[1768063927170,0.000152,90690.0,90678.0,0.01102803]
[1768063927415,0.000152,90690.0,90677.0,0.01102815]
[1768063927909,0.000152,90690.0,90678.0,0.01102803]
[1768063930560,0.000152,90690.0,90678.0,0.01098311]
[1768063931158,0.000152,90690.0,90679.0,0.01102791]
[1768063931359,0.000152,90690.0,90678.0,0.01098311]
[1768063931541,0.000152,90690.0,90679.0,0.01102791]
[1768063932640,0.000152,90690.0,90680.0,0.01102779]
[1768063933505,0.000152,90690.0,90681.0,0.01102766]
[1768063933825,0.000152,90690.0,90680.0,0.01102779]
[1768063934142,0.000152,90690.0,90681.0,0.01102766]
[1768063934898,0.000152,90690.0,90679.0,0.01102791]
[1768063935137,0.000152,90690.0,90680.0,0.01102779]
[1768063936061,0.000152,90690.0,90681.0,0.01102766]
[1768063936665,0.000152,90690.0,90680.0,0.01102779]
[1768063936950,0.000152,90690.0,90681.0,0.01102766]
[1768063937382,0.000152,90690.0,90680.0,0.01102779]
[1768063939081,0.000152,90690.0,90681.0,0.01102766]
[1768063939244,0.000152,90690.0,90680.0,0.01102779]
[1768063941205,0.000152,90690.0,90681.0,0.01102766]
[1768063941845,0.000152,90690.0,90680.0,0.01102779]
[1768063942892,0.000152,90690.0,90681.0,0.01102766]
[1768063944241,0.000152,90690.0,90681.0,0.01098274]
[1768063944728,0.000152,90690.0,90680.0,0.01102779]
[1768063945415,0.000152,90690.0,90676.0,0.06011822]
[1768063945617,0.000152,90690.0,90679.0,0.01102791]
[1768063947154,0.000152,90690.0,90678.0,0.01102803]
[1768063947785,0.000152,90690.0,90679.0,0.01102791]
[1768063951059,0.000152,90690.0,90680.0,0.01102779]
[1768063951756,0.000152,90690.0,90679.0,0.01102791]
[1768063951958,0.000152,90690.0,90680.0,0.01102779]
[1768063952683,0.000152,90690.0,90679.0,0.01102791]
[1768063953066,0.000152,90690.0,90679.0,0.01087437]
[1768063958798,0.000152,90690.0,90679.0,0.01082945]
[1768063960327,0.000152,90690.0,90680.0,0.01102779]
[1768063960729,0.000152,90690.0,90679.0,0.01082945]
[1768063962184,0.000152,90690.0,90680.0,0.01102779]
[1768063963129,0.000152,90690.0,90679.0,0.01082945]
[1768063964193,0.000152,90690.0,90680.0,0.01102779]
[1768063965163,0.000152,90690.0,90679.0,0.01082945]
[1768063966097,0.000152,90690.0,90680.0,0.01102779]
[1768063966395,0.000152,90690.0,90679.0,0.01082945]
[1768063967526,0.000152,90690.0,90680.0,0.01102779]
[1768063968629,0.000152,90690.0,90679.0,0.01082945]
[1768063970886,0.000152,90690.0,90680.0,0.01102779]
[1768063971926,0.000152,90690.0,90679.0,0.01082945]
[1768063972528,0.000152,90690.0,90680.0,0.01102779]
[1768063973142,0.000152,90690.0,90679.0,0.01082945]
[1768063973312,0.000152,90690.0,90680.0,0.01102779]
[1768063973537,0.000152,90690.0,90680.0,0.01098287]
[1768063975213,0.000152,90690.0,90681.0,0.01102766]
[1768063976711,0.000152,90690.0,90680.0,0.01098287]
[1768063977108,0.000152,90690.0,90681.0,0.01102766]
[1768063977313,0.000152,90690.0,90680.0,0.01098287]
[1768063978113,0.000152,90690.0,90681.0,0.01102766]
[1768063978263,0.000152,90690.0,90680.0,0.01098287]
[1768063978596,0.000152,90690.0,90681.0,0.01102766]
[1768063979529,0.000152,90690.0,90680.0,0.01098287]
[1768063979920,0.000152,90690.0,90679.0,0.01082945]
[1768063980382,0.000152,90690.0,90678.0,0.01102803]
[1768063980787,0.000152,90690.0,90677.0,0.01102815]
[1768063981346,0.000152,90690.0,90678.0,0.01102803]
[1768063981594,0.000152,90690.0,90677.0,0.01102815]
[1768063981734,0.000152,90690.0,90678.0,0.01102803]
[1768063982187,0.000152,90690.0,90679.0,0.01102791]
[1768063982395,0.000152,90690.0,90678.0,0.01102803]
[1768063982986,0.000152,90690.0,90677.0,0.01102815]
[1768063983348,0.000152,90690.0,90677.0,0.01098301]
[1768063983571,0.000152,90690.0,90678.0,0.01102803]
[1768063984587,0.000152,90690.0,90677.0,0.01098301]
[1768063984787,0.000152,90690.0,90678.0,0.01102803]
[1768063985207,0.000152,90690.0,90679.0,0.01102791]
[1768063987615,0.000152,90690.0,90680.0,0.01102779]
[1768063988049,0.000152,90690.0,90679.0,0.01102791]
[1768063988673,0.000152,90690.0,90680.0,0.01102779]
[1768063988838,0.000152,90690.0,90679.0,0.01102791]
[1768063989236,0.000152,90690.0,90678.0,0.01102803]
[1768063991280,0.000152,90690.0,90679.0,0.01102791]
[1768063992969,0.000152,90690.0,90680.0,0.01102779]
[1768063994427,0.000152,90690.0,90679.0,0.01102791]
[1768063994581,0.000152,90690.0,90678.0,0.01102803]
[1768063995352,0.000152,90690.0,90679.0,0.01102791]
[1768063998233,0.000152,90690.0,90680.0,0.01102779]
[1768063999075,0.000152,90690.0,90679.0,0.01102791]
[1768063999780,0.000152,90690.0,90680.0,0.01102779]
[1768064000968,0.000152,90690.0,90679.0,0.01102791]
[1768064001170,0.000152,90690.0,90680.0,0.01102779]
[1768064001688,0.000152,90690.0,90679.0,0.01102791]
[1768064002788,0.000152,90690.0,90680.0,0.01102779]
[1768064004235,0.000152,90690.0,90679.0,0.01102791]
[1768064004378,0.000152,90690.0,90680.0,0.01102779]
[1768064007166,0.000152,90690.0,90679.0,0.01102791]
[1768064007831,0.000152,90690.0,90678.0,0.01102803]
[1768064008528,0.000152,90690.0,90679.0,0.01102791]
[1768064010915,0.000152,90690.0,90678.0,0.01102803]
[1768064011735,0.03309769,90689.0,90678.0,0.01102803]
[1768064011942,0.03309769,90689.0,90679.0,0.01102791]
[1768064012259,0.03309769,90689.0,90678.0,0.01102803]
[1768064012419,0.03309769,90689.0,90679.0,0.01102791]
[1768064016103,0.03309769,90689.0,90677.0,0.01098301]
[1768064016309,0.03309769,90689.0,90676.0,0.06011822]
[1768064017278,0.03309769,90689.0,90677.0,0.01102815]
[1768064019841,0.03309769,90689.0,90678.0,0.04505131]
[1768064020206,0.04412438,90689.0,90678.0,0.04505131]
[1768064020440,0.01102681,90688.0,90678.0,0.04505131]
[1768064020611,0.01102693,90687.0,90678.0,0.04505131]
[1768064021149,0.04412462,90687.0,90678.0,0.04505131]
[1768064021552,0.03309769,90687.0,90678.0,0.04505131]
[1768064022644,0.01102706,90686.0,90678.0,0.04505131]
[1768064024794,0.04412462,90687.0,90678.0,0.04505131]
[1768064025087,0.04412462,90687.0,90675.0,0.02208]
[1768064025244,0.01102706,90686.0,90675.0,0.02208]
[1768064025973,0.02208,90686.0,90675.0,0.03310839]
[1768064026155,0.02208,90686.0,90675.0,0.02208]
[1768064026923,0.02208,90686.0,90675.0,0.03310839]
[1768064028487,0.02208,90686.0,90675.0,0.02208]
[1768064029239,0.04746669,90688.0,90675.0,0.03310839]
[1768064029447,0.04746669,90688.0,90675.0,0.02208]
[1768064030004,0.02208,90687.0,90675.0,0.02208]
[1768064030240,0.03310693,90687.0,90675.0,0.02208]
[1768064031801,0.02208,90687.0,90675.0,0.02208]
[1768064032001,0.01102706,90686.0,90675.0,0.02208]
[1768064032209,0.02208,90687.0,90675.0,0.02208]
[1768064033268,0.03310693,90687.0,90675.0,0.02208]
[1768064033468,0.03310693,90687.0,90675.0,0.02203507]
[1768064033849,0.01102718,90685.0,90675.0,0.02203507]
[1768064034056,0.01102706,90686.0,90675.0,0.02203507]
[1768064034489,0.01102718,90685.0,90675.0,0.02203507]
[1768064034690,0.01102706,90686.0,90675.0,0.02203507]
[1768064035203,0.01102718,90685.0,90675.0,0.02203507]
[1768064035633,0.01102706,90686.0,90675.0,0.02203507]
[1768064037830,0.01102718,90685.0,90675.0,0.02203507]
[1768064037978,0.01102706,90686.0,90675.0,0.02203507]
[1768064038179,0.01102718,90685.0,90675.0,0.02203507]
[1768064038933,0.01102706,90686.0,90675.0,0.02203507]
[1768064040092,0.01102718,90685.0,90675.0,0.02203507]
[1768064041054,0.0110273,90684.0,90675.0,0.02203507]
[1768064041390,0.01102742,90683.0,90675.0,0.02103607]
[1768064041589,0.01102754,90682.0,90675.0,0.02103607]
[1768064041832,0.01102742,90683.0,90675.0,0.02103607]
[1768064042008,0.01102754,90682.0,90675.0,0.02103607]
[1768064042825,0.01102742,90683.0,90675.0,0.02103607]
[1768064044469,0.0110273,90684.0,90675.0,0.02103607]
[1768064044629,0.01102706,90686.0,90675.0,0.02103607]
[1768064044829,0.04412462,90687.0,90675.0,0.02103607]
[1768064045361,0.03309769,90687.0,90675.0,0.02103607]
[1768064046169,0.08959902,90687.0,90675.0,0.02103607]
[1768064046577,0.01102706,90686.0,90675.0,0.02103607]
[1768064047069,0.08959902,90687.0,90675.0,0.02103607]
[1768064047502,0.07857209,90687.0,90675.0,0.02103607]
[1768064047697,0.08959902,90687.0,90675.0,0.02103607]
[1768064047895,0.04412462,90687.0,90676.0,0.04636709]
[1768064049027,0.03309769,90687.0,90676.0,0.04636709]
[1768064049237,0.04412462,90687.0,90676.0,0.04636709]
[1768064050329,0.03309769,90687.0,90676.0,0.04636709]
[1768064050725,0.04412462,90687.0,90676.0,0.04636709]
[1768064051688,0.01102693,90687.0,90676.0,0.04636709]
[1768064052255,0.01102706,90686.0,90676.0,0.04636709]
[1768064052995,0.01102693,90687.0,90675.0,0.02103607]
[1768064053484,0.01102706,90686.0,90675.0,0.02103607]
[1768064053675,0.032063,90687.0,90675.0,0.02103607]
[1768064053815,0.0775374,90687.0,90675.0,0.02103607]
[1768064054461,0.0753789,90687.0,90675.0,0.02103607]
[1768064056373,0.01102706,90686.0,90675.0,0.02103607]
[1768064057385,0.01102718,90685.0,90675.0,0.02103607]
[1768064058173,0.01102706,90686.0,90675.0,0.02103607]
[1768064058385,0.01102718,90685.0,90675.0,0.02103607]
[1768064059173,0.01102706,90686.0,90675.0,0.02103607]
[1768064060498,0.1305138,90687.0,90675.0,0.02103607]
[1768064060499,0.0753789,90687.0,90675.0,0.02103607]
[1768064060799,0.05434283,90687.0,90675.0,0.02103607]
[1768064060953,0.02103607,90686.0,90675.0,0.02103607]
[1768064062111,0.03206313,90686.0,90675.0,0.02103607]
[1768064065766,0.02103607,90686.0,90675.0,0.02103607]
[1768064068349,0.02103607,90686.0,90675.0,0.03206446]
[1768064069387,0.02103607,90686.0,90675.0,0.02103607]
[1768064070119,0.02103607,90686.0,90675.0,0.03206446]
[1768064070258,0.02103607,90686.0,90675.0,0.02103607]
[1768064071462,0.02103607,90686.0,90675.0,0.03206446]
[1768064071673,0.02103607,90686.0,90675.0,0.02103607]
[1768064072096,0.02103607,90686.0,90675.0,0.03206446]
[1768064072316,0.0454744,90687.0,90675.0,0.03206446]
[1768064072535,0.0454744,90687.0,90676.0,0.01102827]
[1768064072745,0.0454744,90687.0,90677.0,0.01102815]
[1768064073371,0.0454744,90687.0,90675.0,0.03206446]
[1768064073579,0.0454744,90687.0,90676.0,0.01102827]
[1768064074308,0.0454744,90687.0,90677.0,0.01041231]
[1768064074745,0.0454744,90687.0,90677.0,0.01102815]
[1768064075389,0.0454744,90687.0,90676.0,0.01102827]
[1768064076559,0.0454744,90687.0,90677.0,0.01102815]
[1768064078556,0.0454744,90687.0,90676.0,0.01102827]
[1768064079058,0.0454744,90687.0,90678.0,0.01102803]
[1768064079265,0.0454744,90687.0,90677.0,0.01102815]
[1768064081832,0.0454744,90687.0,90678.0,0.01102803]
[1768064082010,0.0454744,90687.0,90675.0,0.03206446]
[1768064082223,0.0454744,90687.0,90676.0,0.01102827]
[1768064082404,0.0454744,90687.0,90675.0,0.03206446]
[1768064082604,0.0454744,90687.0,90675.0,0.02103607]
[1768064082804,0.0454744,90687.0,90675.0,0.03206446]
[1768064084940,0.0454744,90687.0,90675.0,0.02103607]
[1768064086479,0.0454744,90687.0,90676.0,0.01102827]
[1768064088392,0.0454744,90687.0,90677.0,0.01102815]
[1768064089293,0.0454744,90687.0,90678.0,0.01102803]
[1768064090820,0.0454744,90687.0,90677.0,0.01102815]
[1768064091392,0.0454744,90687.0,90675.0,0.03206446]
[1768064091579,0.0454744,90687.0,90677.0,0.01102815]
[1768064091782,0.0454744,90687.0,90676.0,0.01102827]
[1768064092388,0.0454744,90687.0,90677.0,0.01102815]
[1768064092831,0.0454744,90687.0,90676.0,0.01102827]
[1768064093127,0.0454744,90687.0,90675.0,0.02103607]
[1768064094034,0.0454744,90687.0,90675.0,0.03206446]
[1768064095574,0.0454744,90687.0,90676.0,0.01102827]
[1768064096308,0.0454744,90687.0,90675.0,0.03206446]
[1768064096689,0.0454744,90687.0,90676.0,0.01102827]
[1768064096867,0.0454744,90687.0,90675.0,0.03206446]
[1768064097236,0.0454744,90687.0,90676.0,0.01102827]
[1768064097471,0.0454744,90687.0,90677.0,0.01102815]
[1768064098631,0.0454744,90687.0,90678.0,0.01102803]
[1768064098829,0.0454744,90687.0,90675.0,0.03206446]
[1768064099231,0.0454744,90687.0,90676.0,0.01102827]
[1768064100010,0.0454744,90687.0,90675.0,0.03206446]
[1768064100205,0.0454744,90687.0,90676.0,0.01102827]
[1768064100351,0.0454744,90687.0,90675.0,0.03206446]
[1768064101135,0.02103607,90688.0,90675.0,0.07961339]
[1768064101320,0.02103607,90688.0,90676.0,0.04754893]
[1768064102493,0.02103607,90688.0,90676.0,0.0585772]
[1768064102956,0.02103607,90688.0,90678.0,0.04754893]
[1768064106661,0.02103607,90688.0,90676.0,0.01102827]
[1768064106863,0.02103607,90688.0,90677.0,0.01102815]
[1768064107218,0.02103607,90688.0,90678.0,0.01102803]
[1768064107961,0.02103607,90688.0,90677.0,0.01102815]
[1768064108121,0.02103607,90688.0,90678.0,0.01102803]
[1768064109067,0.02103607,90688.0,90677.0,0.01102815]
[1768064109273,0.02103607,90688.0,90675.0,0.03206446]
[1768064109414,0.02103607,90688.0,90676.0,0.01102827]
[1768064110396,0.02103607,90688.0,90678.0,0.01102803]
[1768064110678,0.02103607,90688.0,90677.0,0.01102815]
[1768064111185,0.02103607,90688.0,90678.0,0.01102803]
[1768064111539,0.02103607,90688.0,90676.0,0.01102827]
[1768064114110,0.02103607,90688.0,90675.0,0.03206446]
[1768064114519,0.02103607,90688.0,90675.0,0.02103607]
[1768064114848,0.03206288,90688.0,90675.0,0.02103607]
[1768064115464,0.01102718,90685.0,90675.0,0.02103607]
[1768064115667,0.01102706,90686.0,90675.0,0.02103607]
[1768064115965,0.0110273,90684.0,90671.0,0.04939447]
[1768064116164,0.01102742,90683.0,90671.0,0.04939447]
[1768064116961,0.0110273,90684.0,90671.0,0.04939447]
[1768064117164,0.01102718,90685.0,90671.0,0.06042335]
[1768064117365,0.01102706,90686.0,90671.0,0.06042335]
[1768064117958,0.01102718,90685.0,90671.0,0.06042335]
[1768064118179,0.01102706,90686.0,90671.0,0.06042335]
[1768064118356,0.01102706,90686.0,90672.0,0.01102876]
[1768064119292,0.01102693,90687.0,90672.0,0.01102876]
[1768064119697,0.01102693,90687.0,90673.0,0.01102864]
[1768064120662,0.01102693,90687.0,90672.0,0.01102876]
[1768064120901,0.01102693,90687.0,90673.0,0.01102864]
[1768064121219,0.01102706,90686.0,90672.0,0.01102876]
[1768064121408,0.01102706,90686.0,90671.0,0.06042335]
[1768064121613,0.01102706,90686.0,90672.0,0.01102876]
[1768064122603,0.01102693,90687.0,90672.0,0.01102876]
[1768064123143,0.01102693,90687.0,90673.0,0.01102864]
[1768064124839,0.02103607,90688.0,90673.0,0.01102864]
[1768064125049,0.02103607,90688.0,90674.0,0.01102851]
[1768064125050,0.03206288,90688.0,90674.0,0.01102851]
[1768064126585,0.02103607,90688.0,90674.0,0.01102851]
[1768064127461,0.02103607,90688.0,90672.0,0.06617235]
[1768064127462,0.01102693,90687.0,90672.0,0.01102876]
[1768064127614,0.01102693,90687.0,90673.0,0.01102864]
[1768064128033,0.01102706,90686.0,90672.0,0.01102876]
[1768064129237,0.06616197,90687.0,90671.0,0.04939447]
[1768064129357,0.01102718,90685.0,90671.0,0.04939447]
[1768064129800,0.01102718,90685.0,90671.0,0.06042335]
[1768064129999,0.01102718,90685.0,90671.0,0.04939447]
[1768064130193,0.0110273,90684.0,90671.0,0.04939447]
[1768064130521,0.01102718,90685.0,90671.0,0.06042335]
[1768064131677,0.01102718,90685.0,90671.0,0.04939447]
[1768064131879,0.01102718,90685.0,90671.0,0.06042335]
[1768064132429,0.0110273,90684.0,90671.0,0.04939447]
[1768064133058,0.01102718,90685.0,90671.0,0.04939447]
[1768064133289,0.05813704,90684.0,90670.0,0.01323432]
[1768064135199,0.04710974,90684.0,90670.0,0.01323432]
[1768064135377,0.04710974,90684.0,90671.0,0.01102888]
[1768064136614,0.04710974,90684.0,90670.0,0.01323432]
[1768064137120,0.04710974,90684.0,90671.0,0.01102888]
[1768064138701,0.04710974,90684.0,90670.0,0.01323432]
[1768064139000,0.05813704,90684.0,90670.0,0.01323432]
[1768064139296,0.04710974,90684.0,90671.0,0.01102888]
[1768064139903,0.04710974,90684.0,90672.0,0.01102876]
[1768064140148,0.04710974,90684.0,90673.0,0.01102864]
[1768064140447,0.04710974,90684.0,90672.0,0.01102876]
[1768064140724,0.04710974,90684.0,90673.0,0.01102864]
[1768064141073,0.04710974,90684.0,90674.0,0.01102851]
[1768064141285,0.04710974,90684.0,90673.0,0.01102864]
[1768064142422,0.04710974,90684.0,90671.0,0.01102888]
[1768064142823,0.04710974,90684.0,90670.0,0.01323432]
[1768064143211,0.05813704,90684.0,90670.0,0.01323432]
[1768064144323,0.04710974,90684.0,90670.0,0.01323432]
[1768064144518,0.05813704,90684.0,90670.0,0.00220532]
[1768064145454,0.05813704,90684.0,90670.0,0.01323432]
[1768064145666,0.04710974,90684.0,90670.0,0.01323432]
[1768064145840,0.04710974,90684.0,90672.0,0.01102876]
[1768064146039,0.04710974,90684.0,90671.0,0.01102888]
[1768064146247,0.04710974,90684.0,90672.0,0.01102876]
[1768064147271,0.04710974,90684.0,90673.0,0.01102864]
[1768064147666,0.04710974,90684.0,90674.0,0.01102851]
[1768064147877,0.04710974,90684.0,90673.0,0.01102864]
[1768064149619,0.04710974,90684.0,90674.0,0.01102851]
[1768064150138,0.04710974,90684.0,90673.0,0.01102864]
[1768064151563,0.04710974,90684.0,90674.0,0.01102851]
[1768064152157,0.04710974,90684.0,90673.0,0.01102864]
[1768064153573,0.04710974,90684.0,90674.0,0.01102851]
[1768064158099,0.04710974,90684.0,90673.0,0.01102864]
[1768064158315,0.04710974,90684.0,90674.0,0.01102851]
[1768064160374,0.04710974,90684.0,90675.0,0.01102839]
[1768064160574,0.04710974,90684.0,90674.0,0.01102851]
[1768064160769,0.04710974,90684.0,90675.0,0.01102839]
[1768064161508,0.04710974,90684.0,90674.0,0.01102851]
[1768064161853,0.04710974,90684.0,90675.0,0.01102839]
[1768064162034,0.04710974,90684.0,90676.0,0.01102827]
[1768064162248,0.02103607,90688.0,90678.0,0.04611421]
[1768064162853,0.02103607,90688.0,90678.0,0.05714224]
[1768064163063,0.02103607,90688.0,90678.0,0.04611421]
[1768064165060,0.02103607,90688.0,90678.0,0.05714224]
[1768064166601,0.02103607,90688.0,90678.0,0.04611421]
[1768064166805,0.02103607,90688.0,90678.0,0.05714224]
[1768064167015,0.02103607,90688.0,90678.0,0.04611421]
[1768064168020,0.02103607,90688.0,90678.0,0.05714224]
[1768064168311,0.02103607,90688.0,90678.0,0.04611421]
[1768064191236,0.03206288,90688.0,90678.0,0.04611421]
[1768064193538,0.01102681,90688.0,90678.0,0.04611421]
[1768064193740,0.03206288,90687.0,90678.0,0.04611421]
[1768064194893,0.03206288,90687.0,90674.0,0.01102851]
[1768064195639,0.04308981,90687.0,90673.0,0.01102864]
[1768064195841,0.03206288,90687.0,90674.0,0.01102851]
[1768064196044,0.03206288,90687.0,90674.0,0.05889543]
[1768064197520,0.03206288,90687.0,90675.0,0.01102839]
[1768064197717,0.03206288,90687.0,90676.0,0.04786692]
[1768064198427,0.04308981,90687.0,90676.0,0.02389619]
[1768064198709,0.01102706,90686.0,90676.0,0.02389619]
[1768064199121,0.01102693,90687.0,90676.0,0.02389619]
[1768064199363,0.02389619,90686.0,90676.0,0.02389619]
[1768064200788,0.02389619,90686.0,90676.0,0.03492446]
[1768064200985,0.02389619,90686.0,90676.0,0.02389619]
[1768064201329,0.02389619,90686.0,90676.0,0.03492446]
[1768064201966,0.02389619,90686.0,90676.0,0.02389619]
[1768064202189,0.02389619,90686.0,90676.0,0.03492446]
[1768064202488,0.02389619,90686.0,90676.0,0.02389619]
[1768064204355,0.02389619,90686.0,90676.0,0.03492446]
[1768064207306,0.02389619,90686.0,90676.0,0.02389619]
[1768064208200,0.04689728,90685.0,90672.0,0.01102876]
[1768064210108,0.03492325,90686.0,90672.0,0.05889568]
[1768064210608,0.03492325,90686.0,90672.0,0.04786692]
[1768064210970,0.08182053,90686.0,90672.0,0.04786692]
[1768064211169,0.08182053,90686.0,90670.0,0.06743856]
[1768064211354,0.01102718,90685.0,90671.0,0.01102888]
[1768064211566,0.01102718,90685.0,90671.0,0.04786692]
[1768064211965,0.01102718,90685.0,90671.0,0.0588958]
[1768064213883,0.08182053,90686.0,90672.0,0.01102876]
[1768064214638,0.01102718,90685.0,90671.0,0.0588958]
[1768064215962,0.08182053,90686.0,90671.0,0.0588958]
[1768064216303,0.08182053,90686.0,90672.0,0.01102876]
[1768064216957,0.07079347,90686.0,90672.0,0.01102876]
[1768064217558,0.07079347,90686.0,90673.0,0.01102864]
[1768064218389,0.01102718,90685.0,90671.0,0.04786692]
[1768064218611,0.04548425,90683.0,90669.0,0.03325857]
[1768064218760,0.01102766,90681.0,90669.0,0.03325857]
[1768064218964,0.01102779,90680.0,90669.0,0.03325857]
[1768064221788,0.01102766,90681.0,90669.0,0.03325857]
[1768064224723,0.01102779,90680.0,90669.0,0.03325857]
[1768064226336,0.01102766,90681.0,90669.0,0.03325857]
[1768064227548,0.05651167,90683.0,90669.0,0.03325857]
[1768064227748,0.01102754,90682.0,90669.0,0.03325857]
[1768064228130,0.05651167,90683.0,90669.0,0.04428769]
[1768064228340,0.05651167,90683.0,90669.0,0.03325857]
[1768064228654,0.04548425,90683.0,90669.0,0.04428769]
[1768064228975,0.04548425,90683.0,90670.0,0.011029]
[1768064229101,0.05651167,90683.0,90669.0,0.04428769]
[1768064229299,0.04548425,90683.0,90669.0,0.04428769]
[1768064229652,0.04548425,90683.0,90670.0,0.011029]
[1768064231080,0.04548425,90683.0,90669.0,0.04428769]
[1768064231267,0.04548425,90683.0,90670.0,0.011029]
[1768064231991,0.04548425,90683.0,90669.0,0.03325857]
[1768064232150,0.05651167,90683.0,90669.0,0.03325857]
[1768064232337,0.05651167,90683.0,90669.0,0.04428769]
[1768064233698,0.05651167,90683.0,90669.0,0.03325857]
[1768064233858,0.05651167,90683.0,90669.0,0.04428769]
[1768064234497,0.11164934,90683.0,90669.0,0.03325857]
[1768064234678,0.01102754,90682.0,90669.0,0.03325857]
[1768064236265,0.01102766,90681.0,90669.0,0.03325857]
[1768064236467,0.01102754,90682.0,90669.0,0.03325857]
[1768064237630,0.01102766,90681.0,90669.0,0.03325857]
[1768064237834,0.01102754,90682.0,90669.0,0.03325857]
[1768064238556,0.05651167,90683.0,90669.0,0.03325857]
[1768064239840,0.01102779,90680.0,90669.0,0.03325857]
[1768064240161,0.01102766,90681.0,90669.0,0.03325857]
[1768064242041,0.01102791,90679.0,90669.0,0.03325857]
[1768064242242,0.06616609,90681.0,90669.0,0.03325857]
[1768064242243,0.01102766,90681.0,90669.0,0.03325857]
[1768064243194,0.01102779,90680.0,90669.0,0.03325857]
[1768064243854,0.01102791,90679.0,90669.0,0.03325857]
[1768064245704,0.01102779,90680.0,90669.0,0.03325857]
[1768064247428,0.01102791,90679.0,90669.0,0.03325857]
[1768064247732,0.01102803,90678.0,90669.0,0.03325857]
[1768064248075,0.01102791,90679.0,90669.0,0.03325857]
[1768064249297,0.01102803,90678.0,90669.0,0.03325857]
[1768064249837,0.01102779,90680.0,90669.0,0.03325857]
[1768064250887,0.01102791,90679.0,90669.0,0.03325857]
[1768064251291,0.01102779,90680.0,90669.0,0.03325857]
[1768064251491,0.01102791,90679.0,90669.0,0.03325857]
[1768064252518,0.01102779,90680.0,90669.0,0.03325857]
[1768064253109,0.01102791,90679.0,90669.0,0.03325857]
[1768064254060,0.01102779,90680.0,90669.0,0.02208]
[1768064254409,0.01102766,90681.0,90669.0,0.02208]
[1768064255335,0.01102779,90680.0,90669.0,0.02208]
[1768064255730,0.01102766,90681.0,90669.0,0.02208]